fUST/lending_fUST_20250407
["ID","MTS","AMOUNT","RATE_DAILY","PERIOD"]
[357392179,1744039841467,-500.0,0.00032876,7]
[357392181,1744039841478,-2410.95,0.00032876,7]
[357392183,1744039841488,-500.0,0.00032876,7]
[357392185,1744039841498,-670.26,0.00032876,7]
[357392187,1744039841508,-500.0,0.00032876,7]
[357392189,1744039841518,-2269.69,0.00032876,7]
[357392191,1744039841528,-2700.48,0.00032876,7]
[357392193,1744039841537,-360.29701975,0.00032876,7]
[357392196,1744039841551,-500.0,0.00032876,7]
[357392198,1744039841560,-902.74,0.00032876,7]
[357392200,1744039841571,-500.0,0.00032876,7]
[357392202,1744039841581,-500.0,0.00032876,7]
[357392204,1744039841591,-500.0,0.00032876,7]
[357392206,1744039841601,-500.0,0.00032876,7]
[357392208,1744039841611,-1082.47,0.00032876,7]
[357392210,1744039841624,-1770.74,0.00032876,7]
[357392212,1744039841634,-500.0,0.00032876,7]
[357392214,1744039841644,-1126.04,0.00032876,7]
[357392216,1744039841655,-500.0,0.00032876,7]
[357392218,1744039841666,-500.0,0.00032876,7]
[357392221,1744039841676,-3241.31,0.00032876,7]
[357392223,1744039841686,-500.0,0.00032876,7]
[357392225,1744039841696,-500.0,0.00032876,7]
[357392227,1744039841705,-500.0,0.00032876,7]
[357392229,1744039841715,-638.21,0.00032876,7]
[357392231,1744039841726,-2826.12,0.00032876,7]
[357392233,1744039841736,-500.0,0.00032876,7]
[357392235,1744039841746,-539.1728689,0.00032876,7]
[357392237,1744039841757,-1337.02,0.00032876,7]
[357392239,1744039841767,-500.0,0.00032876,7]
[357392241,1744039841778,-500.0,0.00032876,7]
[357392243,1744039841788,-500.0,0.00032876,7]
[357392245,1744039841810,-515.57189982,0.00032876,7]
[357392247,1744039841820,-500.0,0.00032876,7]
[357392249,1744039841830,-500.0,0.00032876,7]
[357392251,1744039841840,-500.0,0.00032876,7]
[357392253,1744039841850,-2868.59,0.00032876,7]
[357392255,1744039841860,-500.0,0.00032876,7]
[357392257,1744039841870,-500.0,0.00032876,7]
[357392259,1744039841880,-500.0,0.00032876,7]
[357392261,1744039841890,-640.56834106,0.00032876,7]
[357392263,1744039841900,-500.0,0.00032876,7]
[357392266,1744039841910,-500.0,0.00032876,7]
[357392268,1744039841920,-500.0,0.00032876,7]
[357392270,1744039841930,-4480.7,0.00032876,7]
[357392272,1744039841941,-1831.69,0.00032876,7]
[357392274,1744039841951,-641.79,0.00032876,7]
[357392276,1744039841960,-500.0,0.00032876,7]
[357392278,1744039841970,-1156.05,0.00032876,7]
[357392280,1744039841980,-500.0,0.00032876,7]
[357392282,1744039841990,-2353.49,0.00032876,7]
[357392284,1744039841999,-518.91,0.00032876,7]
[357392286,1744039842009,-1822.49,0.00032876,7]
[357392288,1744039842019,-500.0,0.00032876,7]
[357392290,1744039842029,-2491.94,0.00032876,7]
[357392292,1744039842038,-419.36665037,0.00032876,7]
[357392294,1744039842055,-570.02,0.00032876,7]
[357392296,1744039842065,-500.0,0.00032876,7]
[357392299,1744039842079,-500.0,0.00032876,7]
[357392301,1744039842089,-1823.0,0.00032876,7]
[357392303,1744039842099,-500.0,0.00032876,7]
[357392305,1744039842108,-500.0,0.00032876,7]
[357392307,1744039842120,-1995.17,0.00032876,7]
[357392309,1744039842132,-506.97213706,0.00032876,7]
[357392311,1744039842142,-500.0,0.00032876,7]
[357392313,1744039842155,-500.0,0.00032876,7]
[357392315,1744039842165,-500.0,0.00032876,7]
[357392317,1744039842175,-677.67,0.00032876,7]
[357392320,1744039842186,-500.0,0.00032876,7]
[357392322,1744039842198,-3577.22,0.00032876,7]
[357392324,1744039842208,-500.0,0.00032876,7]
[357392326,1744039842221,-500.0,0.00032876,7]
[357392328,1744039842232,-500.0,0.00032876,7]
[357392330,1744039842243,-500.0,0.00032876,7]
[357392332,1744039842252,-500.0,0.00032876,7]
[357392334,1744039842263,-500.0,0.00032876,7]
[357392336,1744039842272,-4156.89,0.00032876,7]
[357392338,1744039842282,-4156.89,0.00032876,7]
[357392340,1744039842297,-4156.89,0.00032876,7]
[357392343,1744039842307,-4156.89,0.00032876,7]
[357392345,1744039842317,-4156.89,0.00032876,7]
[357392347,1744039842328,-4156.89,0.00032876,7]
[357392349,1744039842338,-4156.89,0.00032876,7]
[357392351,1744039842348,-4156.89,0.00032876,7]
[357392353,1744039842358,-768.44,0.00032876,7]
[357392355,1744039842368,-3291.06,0.00032876,7]
[357392357,1744039842378,-500.0,0.00032876,7]
[357392359,1744039842388,-500.0,0.00032876,7]
[357392361,1744039842398,-500.0,0.00032876,7]
[357392363,1744039842408,-500.0,0.00032876,7]
[357392365,1744039842417,-2050.93,0.00032876,7]
[357392367,1744039842427,-500.0,0.00032876,7]
[357392369,1744039842437,-500.0,0.00032876,7]
[357392371,1744039842447,-500.0,0.00032876,7]
[357392373,1744039842456,-1597.59,0.00032876,7]
[357392375,1744039842466,-500.0,0.00032876,7]
[357392377,1744039842476,-500.0,0.00032876,7]
[357392399,1744039842486,-500.0,0.00032876,7]
[357392403,1744039842719,-500.0,0.00032876,7]
[357392405,1744039842729,-1000.0,0.00032876,7]
[357392407,1744039842740,-500.0,0.00032876,7]
[357392409,1744039842749,-3298.97,0.00032876,7]
[357392411,1744039842759,-2385.71,0.00032876,7]
[357392413,1744039842769,-500.0,0.00032876,7]
[357392415,1744039842779,-838.51,0.00032876,7]
[357392417,1744039842789,-405.34744169,0.00032877,60]
[357392419,1744039842807,-616.974115,0.00032982,2]
[357392421,1744039842818,-16108.05394577,0.00033089,2]
[357392423,1744039842828,-1610.65607011,0.00033138,2]
[357392425,1744039842839,-4831.96821033,0.00033139,2]
[357392427,1744039842850,-6442.62428044,0.0003314,2]
[357392429,1744039842861,-6398.08,0.00033148,7]
[357392431,1744039842872,-6398.08,0.00033148,7]
[357392433,1744039842882,-4156.89,0.00033148,7]
[357392436,1744039842893,-4156.89,0.00033148,7]
[357392438,1744039842903,-4156.89,0.00033148,7]
[357392440,1744039842914,-4156.89,0.00033148,7]
[357392442,1744039842924,-95376.61890016,0.00033148,7]
[357392445,1744039842943,-336.635,0.00033148,7]
[357392496,1744039843282,-500.0,0.00032876,7]
[357392500,1744039843296,-337.56141681,0.00032876,7]
[357392503,1744039843306,-15082.43859002,0.00033148,7]
[357392506,1744039843319,-16375.32055228,0.00033148,7]
[357392695,1744039845290,-500.0,0.00032876,7]
[357392697,1744039845303,-503.5302586,0.00032876,7]
[357392699,1744039845313,-121.4697414,0.00032876,7]
[357392702,1744039845332,-378.5302586,0.00032876,7]
[357392704,1744039845342,-500.0,0.00032876,7]
[357392706,1744039845352,-500.0,0.00032876,7]
[357392708,1744039845362,-114.32723068,0.00033148,7]
[357392723,1744039845502,-45170.25075345,0.00033148,7]
[357392725,1744039845514,-519.47999996,0.00033148,7]
[357392865,1744039846650,-500.0,0.00032876,7]
[357392867,1744039846660,-2595.95329993,0.00032876,7]
[357392885,1744039846823,-238.85670007,0.00032876,7]
[357392887,1744039846833,-500.0,0.00032876,7]
[357392889,1744039846843,-500.0,0.00032876,7]
[357392891,1744039846852,-743.45943456,0.00033148,7]
[357393228,1744040073589,334.84151633,0.000165,2]
[357393271,1744041033054,-1000.0,0.0002,2]
[357393272,1744041033064,-160.0,0.0002,3]
[357393274,1744041033074,-160.0,0.0002,3]
[357393275,1744041033084,-900.0,0.00021,2]
[357393276,1744041033094,-200.0,0.00021917,2]
[357393277,1744041033104,-1000.0,0.00022,2]
[357393278,1744041033113,-226.90719375,0.00023287,2]
[357393279,1744041033123,-1019.68174133,0.00024,2]
[357393280,1744041033133,-4920.2359402,0.00024642,2]
[357393281,1744041033142,-300.0,0.00024643,2]
[357393282,1744041033152,-16413.6791472,0.00024644,2]
[357393283,1744041033162,-166.4520281,0.00025585,2]
[357393284,1744041033175,-2457.44892284,0.000259,6]
[357393285,1744041033185,-420.0,0.00026706,2]
[357393286,1744041033195,-2457.44892261,0.000269,7]
[357393287,1744041033204,-500.0,0.00027285,2]
[357393288,1744041033214,-500.0,0.00027285,2]
[357393289,1744041033223,-500.0,0.00027285,2]
[357393290,1744041033233,-212.89083157,0.00027285,2]
[357393291,1744041033245,-287.10916843,0.00027285,2]
[357393292,1744041033255,-500.0,0.00027285,2]
[357393293,1744041033264,-433.73348119,0.00027285,2]
[357393303,1744041039000,-201.541298,0.0002631,2]
[357393304,1744041039010,-201.541298,0.00026441,2]
[357393305,1744041039020,-66.26651881,0.00027285,2]
[357393306,1744041039030,-500.0,0.00027285,2]
[357393307,1744041039041,-500.0,0.00027285,2]
[357393309,1744041039239,-172.41443319,0.00027285,2]
[357393310,1744041039253,-26.29969583,0.00027285,2]
[357393311,1744041039263,-546.91332347,0.00027285,2]
[357393312,1744041039273,-417.10290271,0.00027285,2]
[357393313,1744041039284,-82.89709729,0.00027285,2]
[357393314,1744041039294,-500.0,0.00027285,2]
[357393315,1744041039304,-500.0,0.00027285,2]
[357393316,1744041039313,-500.0,0.00027285,2]
[357393317,1744041039323,-500.0,0.00027285,2]
[357393318,1744041039332,-369.25063355,0.00027285,2]
[357393319,1744041039342,-500.0,0.00027285,2]
[357393320,1744041039351,-500.0,0.00027285,2]
[357393321,1744041039361,-500.0,0.00027285,2]
[357393322,1744041039370,-500.0,0.00027285,2]
[357393323,1744041039379,-500.0,0.00027285,2]
[357393324,1744041039390,-228.36496206,0.00027285,2]
[357393325,1744041039402,-177.12824317,0.00027285,2]
[357393326,1744041039412,-500.0,0.00027285,2]
[357393327,1744041039423,-50000.0,0.00027286,2]
[357393328,1744041039433,-778.61908915,0.00027297,2]
[357393329,1744041039442,-151.0,0.00027371,2]
[357393330,1744041039452,-279.58088506,0.00027373,2]
[357393331,1744041039461,-500.0,0.00027373,2]
[357393332,1744041039471,-301.71575181,0.00027373,2]
[357393333,1744041039480,-500.0,0.00027373,2]
[357393334,1744041039489,-500.0,0.00027373,2]
[357393335,1744041039499,-500.0,0.00027373,2]
[357393336,1744041039508,-500.0,0.00027373,2]
[357393337,1744041039521,-500.0,0.00027373,2]
[357393338,1744041039537,-500.0,0.00027373,2]
[357393339,1744041039547,-500.0,0.00027373,2]
[357393340,1744041039557,-500.0,0.00027373,2]
[357393341,1744041039567,-500.0,0.00027373,2]
[357393342,1744041039577,-500.0,0.00027373,2]
[357393343,1744041039587,-500.0,0.00027373,2]
[357393344,1744041039596,-391.52109256,0.00027386,2]
[357393345,1744041039610,-74304.1832148,0.00027387,2]
[357393346,1744041039621,-225.60108074,0.00027387,2]
[357393347,1744041039631,-500.0,0.00027397,7]
[357393348,1744041039641,-500.0,0.00027397,7]
[357393349,1744041039652,-500.0,0.00027397,7]
[357393350,1744041039662,-500.0,0.00027397,7]
[357393351,1744041039674,-565.55082209,0.00027397,7]
[357393352,1744041039684,-500.0,0.00027397,7]
[357393353,1744041039694,-500.0,0.00027397,7]
[357393354,1744041039716,-500.0,0.00027397,7]
[357393355,1744041039727,-500.0,0.00027397,7]
[357393356,1744041039737,-500.0,0.00027397,7]
[357393357,1744041039747,-500.0,0.00027397,7]
[357393358,1744041039757,-500.0,0.00027397,7]
[357393359,1744041039767,-500.0,0.00027397,7]
[357393360,1744041039777,-500.0,0.00027397,7]
[357393361,1744041039788,-500.0,0.00027397,7]
[357393362,1744041039798,-500.0,0.00027397,7]
[357393363,1744041039808,-514.69547292,0.00027397,7]
[357393364,1744041039818,-500.0,0.00027397,7]
[357393365,1744041039828,-500.0,0.00027397,7]
[357393366,1744041039838,-515.81,0.00027397,7]
[357393367,1744041039848,-500.0,0.00027397,7]
[357393368,1744041039857,-500.0,0.00027397,7]
[357393369,1744041039867,-500.0,0.00027397,7]
[357393370,1744041039877,-500.0,0.00027397,7]
[357393371,1744041039887,-500.0,0.00027397,7]
[357393372,1744041039896,-575.93,0.00027397,7]
[357393373,1744041039906,-500.0,0.00027397,7]
[357393374,1744041039916,-500.0,0.00027397,7]
[357393375,1744041039930,-595.33202579,0.00027397,7]
[357393376,1744041039940,-648.84744505,0.00027397,7]
[357393377,1744041039950,-500.0,0.00027397,7]
[357393378,1744041039960,-519.43954198,0.00027397,7]
[357393379,1744041039969,-500.0,0.00027397,7]
[357393380,1744041039979,-500.0,0.00027397,7]
[357393381,1744041039989,-500.0,0.00027397,7]
[357393382,1744041039998,-500.0,0.00027397,7]
[357393383,1744041040008,-500.0,0.00027397,7]
[357393384,1744041040019,-500.0,0.00027397,7]
[357393385,1744041040028,-500.0,0.00027397,7]
[357393386,1744041040038,-515.50288402,0.00027397,7]
[357393387,1744041040048,-500.0,0.00027397,7]
[357393388,1744041040058,-500.0,0.00027397,7]
[357393389,1744041040068,-500.0,0.00027397,7]
[357393390,1744041040079,-500.0,0.00027397,7]
[357393391,1744041040088,-500.0,0.00027397,7]
[357393392,1744041040098,-500.0,0.00027397,7]
[357393393,1744041040108,-500.0,0.00027397,7]
[357393394,1744041040117,-500.0,0.00027397,7]
[357393395,1744041040127,-500.0,0.00027397,7]
[357393396,1744041040137,-500.0,0.00027397,7]
[357393397,1744041040147,-504.67750904,0.00027397,7]
[357393398,1744041040156,-736.42,0.00027397,7]
[357393399,1744041040166,-500.0,0.00027397,7]
[357393400,1744041040177,-500.0,0.00027397,7]
[357393401,1744041040188,-256.60748568,0.00027397,7]
[357393402,1744041040197,-500.0,0.00027397,7]
[357393403,1744041040207,-516.22200213,0.00027397,7]
[357393404,1744041040217,-500.0,0.00027397,7]
[357393405,1744041040227,-500.0,0.00027397,5]
[357393406,1744041040237,-500.0,0.00027397,7]
[357393407,1744041040248,-1531.02,0.00027397,7]
[357393408,1744041040257,-500.0,0.00027397,7]
[357393409,1744041040267,-500.0,0.00027397,7]
[357393410,1744041040277,-614.68,0.00027397,7]
[357393411,1744041040287,-500.0,0.00027397,7]
[357393412,1744041040297,-500.0,0.00027397,7]
[357393413,1744041040307,-510.97050672,0.00027397,7]
[357393414,1744041040316,-500.0,0.00027397,7]
[357393415,1744041040326,-535.57761396,0.00027397,7]
[357393416,1744041040336,-500.0,0.00027397,7]
[357393417,1744041040346,-500.0,0.00027397,7]
[357393418,1744041040356,-500.0,0.00027397,7]
[357393419,1744041040366,-1181.76,0.00027397,7]
[357393420,1744041040375,-500.0,0.00027397,7]
[357393421,1744041040385,-500.0,0.00027397,7]
[357393422,1744041040395,-500.0,0.00027397,7]
[357393423,1744041040405,-500.0,0.00027397,7]
[357393424,1744041040415,-500.0,0.00027397,7]
[357393425,1744041040427,-500.0,0.00027397,7]
[357393426,1744041040438,-500.0,0.00027397,7]
[357393427,1744041040448,-500.0,0.00027397,7]
[357393428,1744041040458,-500.0,0.00027397,7]
[357393429,1744041040467,-500.0,0.00027397,7]
[357393430,1744041040478,-577.24,0.00027397,7]
[357393431,1744041040488,-500.0,0.00027397,7]
[357393432,1744041040498,-701.75,0.00027397,7]
[357393433,1744041040508,-500.0,0.00027397,7]
[357393434,1744041040522,-500.0,0.00027397,7]
[357393435,1744041040531,-500.0,0.00027397,7]
[357393436,1744041040542,-500.0,0.00027397,7]
[357393437,1744041040552,-500.0,0.00027397,7]
[357393438,1744041040563,-503.0936878,0.00027397,7]
[357393439,1744041040572,-243.54374139,0.00027397,7]
[357393440,1744041040582,-1005.2,0.00027397,7]
[357393441,1744041040592,-507.98,0.00027397,7]
[357393442,1744041040604,-500.0,0.00027397,7]
[357393443,1744041040614,-500.0,0.00027397,7]
[357393444,1744041040624,-583.85072547,0.00027397,7]
[357393445,1744041040635,-500.0,0.00027397,7]
[357393446,1744041040645,-500.0,0.00027397,7]
[357393447,1744041040655,-388.45307007,0.00027397,7]
[357393448,1744041040666,-573.82,0.00027397,7]
[357393449,1744041040677,-625.65,0.00027397,7]
[357393450,1744041040687,-839.26,0.00027397,7]
[357393451,1744041040697,-500.0,0.00027397,7]
[357393452,1744041040707,-500.0,0.00027397,7]
[357393453,1744041040717,-500.0,0.00027397,7]
[357393454,1744041040727,-505.05675665,0.00027397,7]
[357393455,1744041040737,-500.0,0.00027397,7]
[357393456,1744041040747,-566.26,0.00027397,7]
[357393457,1744041040758,-500.0,0.00027397,7]
[357393458,1744041040772,-500.0,0.00027397,7]
[357393459,1744041040782,-500.0,0.00027397,7]
[357393460,1744041040792,-808.89,0.00027397,7]
[357393461,1744041040803,-500.0,0.00027397,7]
[357393462,1744041040813,-500.0,0.00027397,7]
[357393463,1744041040823,-500.0,0.00027397,7]
[357393464,1744041040834,-544.72651693,0.00027397,7]
[357393465,1744041040844,-917.27,0.00027397,7]
[357393466,1744041040855,-500.0,0.00027397,7]
[357393467,1744041040866,-500.0,0.00027397,7]
[357393468,1744041040876,-583.23,0.00027397,7]
[357393469,1744041040886,-500.0,0.00027397,7]
[357393470,1744041040897,-500.0,0.00027397,7]
[357393471,1744041040907,-500.0,0.00027397,7]
[357393472,1744041040917,-500.0,0.00027397,7]
[357393473,1744041040931,-500.0,0.00027397,7]
[357393474,1744041040941,-500.0,0.00027397,7]
[357393475,1744041040952,-500.0,0.00027397,7]
[357393476,1744041040963,-500.0,0.00027397,7]
[357393477,1744041040975,-165.00711045,0.00027397,7]
[357393479,1744041040985,-500.0,0.00027397,7]
[357393481,1744041040996,-500.0,0.00027397,7]
[357393483,1744041041008,-500.0,0.00027397,7]
[357393485,1744041041019,-500.0,0.00027397,7]
[357393488,1744041041030,-500.0,0.00027397,7]
[357393490,1744041041041,-500.0,0.00027397,7]
[357393492,1744041041052,-500.0,0.00027397,7]
[357393494,1744041041062,-500.0,0.00027397,7]
[357393496,1744041041072,-500.0,0.00027397,7]
[357393498,1744041041082,-697.06,0.00027397,7]
[357393500,1744041041092,-500.0,0.00027397,7]
[357393502,1744041041103,-500.0,0.00027397,7]
[357393504,1744041041113,-500.0,0.00027397,7]
[357393506,1744041041124,-1046.82,0.00027397,7]
[357393508,1744041041134,-500.0,0.00027397,7]
[357393510,1744041041144,-500.0,0.00027397,7]
[357393512,1744041041154,-500.0,0.00027397,7]
[357393514,1744041041164,-501.15567025,0.00027397,7]
[357393516,1744041041180,-500.0,0.00027397,7]
[357393518,1744041041190,-500.0,0.00027397,7]
[357393520,1744041041201,-500.0,0.00027397,2]
[357393522,1744041041211,-786.23,0.00027397,7]
[357393524,1744041041222,-500.0,0.00027397,7]
[357393526,1744041041233,-500.0,0.00027397,7]
[357393528,1744041041244,-500.0,0.00027397,7]
[357393530,1744041041254,-500.0,0.00027397,7]
[357393533,1744041041265,-500.0,0.00027397,7]
[357393535,1744041041275,-500.0,0.00027397,7]
[357393536,1744041041285,-500.0,0.00027397,7]
[357393538,1744041041295,-500.0,0.00027397,7]
[357393541,1744041041305,-500.0,0.00027397,7]
[357393543,1744041041315,-907.06,0.00027397,7]
[357393545,1744041041325,-500.0,0.00027397,7]
[357393547,1744041041335,-500.0,0.00027397,7]
[357393549,1744041041345,-500.0,0.00027397,7]
[357393551,1744041041355,-500.0,0.00027397,7]
[357393553,1744041041365,-500.0,0.00027397,7]
[357393554,1744041041375,-500.0,0.00027397,7]
[357393557,1744041041385,-500.0,0.00027397,7]
[357393559,1744041041395,-500.0,0.00027397,7]
[357393560,1744041041405,-284.13316112,0.00027397,7]
[357393562,1744041041415,-500.0,0.00027397,7]
[357393564,1744041041428,-500.0,0.00027397,7]
[357393566,1744041041438,-500.0,0.00027397,7]
[357393568,1744041041448,-500.0,0.00027397,7]
[357393571,1744041041458,-500.0,0.00027397,7]
[357393574,1744041041468,-500.0,0.00027397,7]
[357393576,1744041041478,-509.44865641,0.00027397,7]
[357393578,1744041041487,-631.13,0.00027397,7]
[357393580,1744041041497,-500.0,0.00027397,7]
[357393582,1744041041507,-500.0,0.00027397,7]
[357393584,1744041041518,-1304.75,0.00027397,7]
[357393587,1744041041530,-500.0,0.00027397,7]
[357393589,1744041041540,-500.0,0.00027397,7]
[357393591,1744041041550,-500.0,0.00027397,7]
[357393593,1744041041559,-500.0,0.00027397,7]
[357393595,1744041041570,-500.0,0.00027397,7]
[357393597,1744041041579,-500.0,0.00027397,7]
[357393599,1744041041589,-500.0,0.00027397,7]
[357393601,1744041041598,-500.0,0.00027397,7]
[357393603,1744041041610,-500.0,0.00027397,7]
[357393605,1744041041621,-500.0,0.00027397,7]
[357393606,1744041041631,-500.0,0.00027397,7]
[357393607,1744041041641,-500.0,0.00027397,7]
[357393608,1744041041651,-500.0,0.00027397,7]
[357393609,1744041041661,-703.42,0.00027397,7]
[357393610,1744041041672,-500.0,0.00027397,7]
[357393611,1744041041683,-500.0,0.00027397,7]
[357393612,1744041041693,-965.11,0.00027397,7]
[357393613,1744041041703,-500.0,0.00027397,7]
[357393614,1744041041713,-500.0,0.00027397,7]
[357393615,1744041041724,-500.0,0.00027397,7]
[357393616,1744041041734,-500.0,0.00027397,7]
[357393617,1744041041744,-1327.39,0.00027397,7]
[357393618,1744041041754,-500.0,0.00027397,7]
[357393619,1744041041764,-858.71,0.00027397,7]
[357393620,1744041041774,-500.0,0.00027397,7]
[357393621,1744041041784,-500.0,0.00027397,7]
[357393622,1744041041794,-969.42,0.00027397,7]
[357393623,1744041041803,-500.0,0.00027397,7]
[357393624,1744041041814,-500.0,0.00027397,7]
[357393625,1744041041823,-500.0,0.00027397,7]
[357393626,1744041041833,-500.0,0.00027397,7]
[357393627,1744041041843,-613.02,0.00027397,7]
[357393628,1744041041853,-500.0,0.00027397,7]
[357393629,1744041041863,-445.72060118,0.00027397,7]
[357393630,1744041042024,-500.0,0.00027397,7]
[357393631,1744041042049,-500.0,0.00027397,7]
[357393632,1744041042060,-500.0,0.00027397,7]
[357393633,1744041042069,-500.0,0.00027397,7]
[357393634,1744041042078,-500.0,0.00027397,7]
[357393635,1744041042088,-500.0,0.00027397,7]
[357393636,1744041042098,-500.0,0.00027397,7]
[357393637,1744041042107,-500.0,0.00027397,7]
[357393638,1744041042116,-500.0,0.00027397,7]
[357393639,1744041042125,-500.0,0.00027397,7]
[357393640,1744041042135,-700.7,0.00027397,7]
[357393641,1744041042143,-500.0,0.00027397,7]
[357393642,1744041042153,-513.55919009,0.00027397,7]
[357393643,1744041042162,-510.18760529,0.00027397,7]
[357393644,1744041042175,-500.0,0.00027397,7]
[357393645,1744041042184,-500.0,0.00027397,7]
[357393646,1744041042193,-500.0,0.00027397,7]
[357393647,1744041042202,-500.0,0.00027397,7]
[357393648,1744041042212,-500.0,0.00027397,7]
[357393649,1744041042221,-500.0,0.00027397,7]
[357393650,1744041042231,-500.0,0.00027397,7]
[357393651,1744041042241,-500.0,0.00027397,7]
[357393652,1744041042251,-500.0,0.00027397,7]
[357393653,1744041042260,-500.0,0.00027397,7]
[357393654,1744041042269,-500.0,0.00027397,7]
[357393655,1744041042279,-500.0,0.00027397,7]
[357393656,1744041042288,-500.0,0.00027397,7]
[357393657,1744041042298,-500.0,0.00027397,7]
[357393658,1744041042307,-500.0,0.00027397,7]
[357393659,1744041042317,-500.0,0.00027397,7]
[357393660,1744041042326,-500.0,0.00027397,7]
[357393661,1744041042336,-500.0,0.00027397,7]
[357393662,1744041042345,-500.0,0.00027397,7]
[357393663,1744041042354,-515.66819996,0.00027397,7]
[357393664,1744041042364,-843.86,0.00027397,7]
[357393665,1744041042373,-500.0,0.00027397,7]
[357393666,1744041042383,-500.0,0.00027397,7]
[357393667,1744041042392,-500.0,0.00027397,7]
[357393668,1744041042401,-626.79,0.00027397,7]
[357393669,1744041042411,-350.33060218,0.00027397,7]
[357393670,1744041042420,-500.0,0.00027397,7]
[357393671,1744041042433,-500.0,0.00027397,7]
[357393672,1744041042442,-500.0,0.00027397,7]
[357393673,1744041042452,-286.81709821,0.00027397,7]
[357393674,1744041042461,-500.0,0.00027397,7]
[357393675,1744041042471,-500.0,0.00027397,7]
[357393676,1744041042481,-500.0,0.00027397,7]
[357393677,1744041042490,-500.0,0.00027397,7]
[357393678,1744041042500,-500.0,0.00027397,7]
[357393679,1744041042509,-500.0,0.00027397,7]
[357393680,1744041042523,-687.43,0.00027397,7]
[357393681,1744041042532,-500.0,0.00027397,7]
[357393682,1744041042542,-500.0,0.00027397,7]
[357393683,1744041042551,-1291.5,0.00027397,7]
[357393684,1744041042562,-500.0,0.00027397,7]
[357393685,1744041042571,-535.71,0.00027397,7]
[357393686,1744041042581,-500.0,0.00027397,7]
[357393687,1744041042591,-500.0,0.00027397,7]
[357393688,1744041042603,-500.0,0.00027397,7]
[357393689,1744041042613,-500.0,0.00027397,7]
[357393690,1744041042623,-500.0,0.00027397,7]
[357393691,1744041042633,-500.0,0.00027397,7]
[357393692,1744041042642,-500.0,0.00027397,7]
[357393693,1744041042652,-500.0,0.00027397,7]
[357393694,1744041042662,-500.0,0.00027397,7]
[357393695,1744041042672,-500.0,0.00027397,7]
[357393696,1744041042682,-500.0,0.00027397,7]
[357393697,1744041042693,-949.42,0.00027397,7]
[357393698,1744041042702,-500.0,0.00027397,7]
[357393699,1744041042712,-500.0,0.00027397,7]
[357393700,1744041042722,-500.0,0.00027397,7]
[357393701,1744041042732,-500.0,0.00027397,7]
[357393702,1744041042741,-500.0,0.00027397,7]
[357393703,1744041042751,-500.0,0.00027397,7]
[357393704,1744041042761,-500.0,0.00027397,7]
[357393705,1744041042771,-504.13685159,0.00027397,7]
[357393706,1744041042780,-1006.7,0.00027397,7]
[357393707,1744041042790,-500.0,0.00027397,7]
[357393708,1744041042799,-500.0,0.00027397,7]